Cogmind - Beta 17.1 @@@ ROGUE MODE // 2026.09.08 @ 23:42:00 Player: J1ang-5h1 Result: Destroyed by Triborg with Siege Cannon Performance ------------- Evolutions (1) 500 Regions Visited (5) 1000 Robots Destroyed (106) 530 Value Destroyed (2217) 2217 Prototype IDs (12) 240 Alien Tech Used (0) 0 Bonus (13898) 13898 TOTAL SCORE: 18385 Bonus ------- High Alert Combat Kills 123 Follower Combat Kills 821 Prayed to X0-1V1 5000 Major X0-1V1 Interference 7850 Registered with UFD 300 Friendly Fire -196 Cogmind --------- Core Integrity 0/225 Matter 41/300 Energy 265/265 System Corruption 0% Temperature Cool (0) Movement Treading (320) Ox2 Location -9/Scraptown Parts ------- > --- POWER (2) -------- Reinforced Ion Engine > --- PROPULSION (2) --- Improved Treads > --- UTILITY (3) ------ High-capacity Storage Unit X0-1V1's Piety Tracker > --- WEAPON (3) ------- Advanced Beam Rifle > --- INVENTORY (20) --- Armored Wheel Medium Battery (150) Large Matter Pod (150) Machine Analyzer Seismic Detector Improved Light Armor Plating Improved Light Armor Plating Improved Light Armor Plating Improved Light Armor Plating Advanced Beam Cannon Heavy Assault Cannon Heavy Assault Cannon Plasma Cutter Heavy Hammer Peak State ------------ > --- POWER ------------ Reinforced Ion Engine Heavy Ion Engine > --- PROPULSION ------- Improved Treads Improved Treads > --- UTILITY ---------- Disposable Heat Sink High-capacity Storage Unit X0-1V1's Piety Tracker > --- WEAPON ----------- Advanced Beam Rifle Advanced Beam Rifle Advanced Beam Cannon Heavy Assault Cannon > --- INVENTORY -------- Medium Battery Large Matter Pod Machine Analyzer Subdweller Optics Seismic Detector Improved Light Armor Plating Improved Light Armor Plating Improved Light Armor Plating Improved Light Armor Plating Drone Bay Drone Bay Advanced Beam Rifle Heavy Assault Cannon Heavy Assault Cannon Grenade Launcher Plasma Cutter Heavy Hammer [Rating: 47] Favorites ----------- Power Reinforced Ion Engine Engine Reinforced Ion Engine Power Core Light Nuclear Core Propulsion Improved Treads Treads Improved Treads Wheel Compact Wheel Utility High-capacity Storage Unit Device X0-1V1's Piety Tracker Storage High-capacity Storage Unit Protection Light Armor Plating Weapon Advanced Beam Rifle Energy Gun Advanced Beam Rifle Energy Cannon Advanced Beam Cannon Ballistic Gun Light Assault Rifle Ballistic Cannon Heavy Assault Cannon Launcher Grenade Launcher Impact Weapon Heavy Hammer Build | -11 -10 -9 -9 -9 -9 ------- Run | Yrd Mat Mat Sto Rec Scr Slots Evolved 2 | . . 2 . . . Power . | . . . . . . Propulsion . | . . . . . . Utility 1 | . . 1 . . . Weapon 1 | . . 1 . . . Parts Attached 60 | 9 9 27 6 2 7 Power 8 | 1 1 4 1 . 1 Engine 7 | 1 1 3 1 . 1 Core 1 | . . 1 . . . Reactor . | . . . . . . Propulsion 13 | 4 1 4 2 . 2 Treads 9 | 2 . 3 2 . 2 Leg . | . . . . . . Wheel 4 | 2 1 1 . . . Hover . | . . . . . . Flight . | . . . . . . Utility 19 | 2 4 6 1 2 4 Device 11 | 1 3 2 1 1 3 Storage 4 | 1 1 1 . . 1 Processor . | . . . . . . Hackware . | . . . . . . Protection 4 | . . 3 . 1 . Artifact . | . . . . . . Weapon 20 | 2 3 13 2 . . Energy Gun 6 | . . 6 . . . Energy Cannon 2 | . . 1 1 . . Ballistic Gun 5 | 2 1 2 . . . Ballistic Cannon 1 | . . . 1 . . Launcher 2 | . 1 1 . . . Special Weapon . | . . . . . . Impact Weapon 4 | . 1 3 . . . Slashing Weapon . | . . . . . . Piercing Weapon . | . . . . . . Special Melee Weapon . | . . . . . . Unidentified Prototypes 4 | . 1 2 1 . . Parts Lost 12 | . 4 1 . 1 6 Power 2 | . 1 . . . 1 Propulsion 4 | . 2 1 . . 1 Utility 3 | . 1 . . 1 1 Weapon 3 | . . . . . 3 Highest Loss Streak 6 | . 2 1 . 1 6 To Critical Strikes . | . . . . . . Average Backups 16 | 3 10 18 16 17 16 Power . | 1 . . . . . Propulsion . | 1 . . . . . Utility 8 | . 3 9 10 10 8 Weapon 5 | . 4 7 6 6 5 Tool/Special . | . . . . . . Unused Backups 33 | . 1 15 3 . 14 Power . | . . . . . . Propulsion 2 | . . 1 . . 1 Utility 19 | . . 7 2 . 10 Weapon 10 | . 1 6 1 . 2 Tool/Special 2 | . . 1 . . 1 Average Slot Usage (%) 89 | . 98 96 91 89 82 Engine 16 | . 13 9 16 20 18 Treads 16 | . 16 9 16 20 19 Wheel 3 | . 10 8 . . . Device 17 | . 13 19 16 19 15 Storage 10 | . 14 10 8 10 9 Protection 1 | . . 7 . . . Energy Gun 11 | . . 20 16 10 9 Ballistic Gun 4 | . 26 4 . . . Ballistic Cannon 6 | . . . 6 10 9 Impact Weapon 1 | . . 2 4 . . Peak Build Rating 47 | 7 21 40 47 40 43 Average Rating 35 | 5 17 32 44 39 39 On Entrance 24 | . 7 21 39 40 40 Avg Prop Armor Cover (%) 14 | . 14 . . . . Naked Turns 159 | . . . . . 159 Heaviest Build 81 | 13 50 64 81 77 81 Greatest Support 46 | 40 40 43 46 46 46 Greatest Overweight (x) 2 | . 2 2 1 1 2 Average Overweight (x) 1 | . . 1 1 1 . Largest Inventory Capacity 20 | 8 20 20 20 20 20 Average Capacity 19 | 7 18 20 20 20 19 Most Carried 20 | 6 20 20 20 20 20 Average Carried 17 | 3 10 19 19 19 18 Final Capacity 20 | 8 20 20 20 20 20 Final Carried 20 | 6 17 20 20 20 16 Class Distribution -------------------- 65% | Gunner 21% | Mutant 11% | Tank Dominant Class ---------------- Mutant | -10/Materials Tank | -9/Materials Gunner | -9/Storage Gunner | -9/Recycling Gunner | -9/Scraptown Resources | -11 -10 -9 -9 -9 -9 ----------- Run | Yrd Mat Mat Sto Rec Scr Matter Collected 2869 | 338 260 1207 336 47 681 Remotely . | . . . . . . Salvage Created 3237 | 175 445 1182 1220 144 71 Parts 191 | 18 43 41 78 8 3 Haulers Intercepted 9 | . 1 3 5 . . Recyclers Shooed 3 | . 1 . 2 . . Parts Field Recycled . | . . . . . . Retrieved Matter . | . . . . . . Parts Self-Destructed . | . . . . . . Prevented . | . . . . . . Parts Restored . | . . . . . . Kills | -11 -10 -9 -9 -9 -9 ------- Run | Yrd Mat Mat Sto Rec Scr Combat Hostiles Destroyed 62 | . 16 18 23 3 2 Guns 32 | . 5 10 16 . 1 Cannons 11 | . . 1 7 3 . AOE 17 | . 11 5 . . 1 Classes Destroyed 16 | 3 6 4 1 . 2 Worker 10 | 2 2 5 1 . . Builder 3 | . . 2 1 . . Tunneler 5 | 4 . 1 . . . Hauler 9 | . 1 3 5 . . Recycler 6 | 1 . 4 1 . . Mechanic 1 | . 1 . . . . Operator 1 | . . . 1 . . Watcher 8 | . 1 5 2 . . Swarmer 19 | . 6 6 7 . . Grunt 23 | . 7 7 9 . . Brawler 1 | . . 1 . . . Duelist 1 | . . 1 . . . Sentry 14 | . . 3 8 3 . Subdweller 3 | . 3 . . . . Federalist 1 | . . . . . 1 Explorer 1 | . . . . . 1 Best Kill Streak 11 | 2 9 11 6 2 1 Combat Bots Only 6 | . 6 3 4 2 1 Max Kills in Single Turn 3 | 2 3 2 2 1 1 Gunslinging 1 | . 1 1 . . . Exploded 2 | . 2 2 . . 1 Melee . | . . . . . . Uniques/NPCs Destroyed . | . . . . . . Combat | -11 -10 -9 -9 -9 -9 -------- Run | Yrd Mat Mat Sto Rec Scr Hostile Shots Fired 242 | . 79 60 62 13 28 Missed 72 | . 16 22 27 2 5 Hits 170 | . 63 38 35 11 23 Melee 5 | . . 2 . . 3 Projectile 165 | . 63 36 35 11 20 AOE 1 | . . . . . 1 Critical Strikes 4 | . . . 1 1 2 Damage Taken 3055 | . 736 551 502 162 1104 Core 437 | . 130 70 14 28 195 Absorbed by Shields . | . . . . . . Core Remaining (%) 67 | 100 35 . . . . Volleys Fired 221 | 24 66 57 59 4 11 Largest 4 | 2 2 3 4 2 1 Hottest 240 | 40 40 183 240 111 61 Shots Fired 468 | 48 121 122 158 8 11 Gun 390 | 48 112 99 117 4 10 Cannon 62 | . . 17 41 4 . Launcher 16 | . 9 6 . . 1 Special . | . . . . . . Kinetic 213 | 48 112 17 32 4 . Thermal 239 | . . 99 126 4 10 Explosive 16 | . 9 6 . . 1 Electromagnetic . | . . . . . . Robot Hit Streak 8 | 7 8 8 8 5 3 Robot Miss Streak 5 | 2 5 4 3 1 1 Penetration Max 1 | . . . 1 . . Secondary Targets 5 | . 2 2 1 . . Max Gunslinging Chain 1 | . 1 1 1 . . Shots Hit Robots 293 | 31 73 82 95 6 6 Core Hits 135 | 13 41 38 33 3 7 Critical Kills . | . . . . . . Critical Parts Destroyed 1 | 1 . . . . . Critical Strikes 21 | 1 . 7 10 1 2 Burn 18 | . . 7 9 . 2 Destroy 1 | 1 . . . . . Blast 2 | . . . 1 1 . Melee Attacks 16 | . 2 12 2 . . Impact 16 | . 2 12 2 . . Slashing . | . . . . . . Piercing . | . . . . . . Sneak Attacks 6 | . . 6 . . . Combat Hostiles . | . . . . . . Follow-up Attacks 2 | . . 2 . . . Damage Inflicted 7329 | 268 1482 2334 2715 286 244 Guns 3676 | 268 584 1062 1578 44 140 Cannons 1522 | . . 213 1067 242 . Explosions 1556 | . 898 484 70 . 104 Melee 575 | . . 575 . . . Ramming . | . . . . . . Kinetic 2208 | 268 584 159 955 242 . Thermal 2990 | . . 1116 1690 44 140 Explosive 1556 | . 898 484 70 . 104 Electromagnetic . | . . . . . . Impact 575 | . . 575 . . . Slashing . | . . . . . . Piercing . | . . . . . . Highest Corruption 16 | . 14 16 6 . . Average Corruption 10 | . 14 8 6 . . Corruption Purged . | . . . . . . Corruption Blocked . | . . . . . . Effects 62 | . 28 33 1 . . Message Errors 16 | . 6 9 1 . . Matter Fused 18 | . 7 11 . . . Heat Flow Errors 7 | . 4 3 . . . Energy Discharges 7 | . 4 3 . . . Data Loss (minor) 6 | . 3 3 . . . Misfires 1 | . . 1 . . . Alerts 4 | . 2 2 . . . Weapon Failures 3 | . 2 1 . . . Overload Shots . | . . . . . . Overflow Damage 381 | . . 175 206 . . Projectiles 212 | . . 6 206 . . Explosions 10 | . . 10 . . . Melee 159 | . . 159 . . . Knockbacks 9 | . . 1 8 . . Impact 1 | . . 1 . . . Kinetic 7 | . . . 7 . . Secondary 1 | . . . 1 . . Self-Inflicted Damage 47 | . 7 40 . . . Shots 2 | . 1 1 . . . Rammed . | . . . . . . Targets Rammed . | . . . . . . Kicked . | . . . . . . Crushed . | . . . . . . Highest Temperature 513 | . 224 513 199 . 5 Average Temperature 99 | . 65 137 69 . 5 Received Heat Transfer 552 | . 168 129 171 45 39 Effects 9 | . . 9 . . . Shutdowns 2 | . . 2 . . . Energy Bleed 1 | . . 1 . . . Interference 3 | . . 3 . . . Short Circuit 1 | . . 1 . . . Damage (minor) 1 | . . 1 . . . Damage (major) 1 | . . 1 . . . Siege Activations . | . . . . . . Martial Activations . | . . . . . . Shielding Activations . | . . . . . . Robots Disrupted . | . . . . . . Combat Hostiles . | . . . . . . Robots Corrupted 1 | . . 1 . . . Combat Hostiles . | . . . . . . Parts Fried 6 | . . 6 . . . Impact Corruptions 6 | . . 6 . . . Robots Melted 7 | . . 7 . . . Combat Hostiles 2 | . . 2 . . . Parts Melted 14 | . . 9 4 . 1 Heat Transferred 6944 | . . 2849 3626 74 395 Parts Sabotaged . | . . . . . . Parts Stolen . | . . . . . . Parts Stripped . | . . . . . . Power Chain Reactions . | . . . . . . Alert | -11 -10 -9 -9 -9 -9 ------- Run | Yrd Mat Mat Sto Rec Scr Maximum Alert Level 3 | . 1 2 3 1 . Low Security (%) 70 | 100 64 92 4 86 . Level 1 18 | . 35 5 36 13 . Level 2 6 | . . 1 34 . . Level 3 4 | . . . 24 . . Level 4 . | . . . . . . Level 5 . | . . . . . . High Security . | . . . . . . Max Security . | . . . . . . Sterilizations 1 | . 1 . . . . Peak Influence 757 | 10 289 490 757 274 . Initial 274 | . . 73 204 274 . Average 167 | 1 122 107 509 76 . Influence Increases 2888 | 35 471 1113 1000 269 . Destroy 0b10 Robot/C 1360 | . 260 520 480 100 . Destroy 0b10 Robot/NC 215 | 35 25 100 55 . . Destroy Leader 274 | . 54 106 114 . . Allied During Kill 57 | . . 39 7 11 . Successful Hack 99 | . 13 30 19 37 . Select Force Hacks 150 | . 30 . . 120 . Disable Machine 135 | . 30 45 60 . . Destroy Structure 114 | . 59 27 27 1 . Lose Combat Pursuer 60 | . . 60 . . . Miscellaneous 424 | . . 186 238 . . Influence Decreases 2888 | 35 296 802 780 975 . Entered New Map 816 | . . 102 282 432 . Time Decay 1862 | 35 256 630 458 483 . Lost Part 60 | . 40 10 . 10 . Lost Ally 150 | . . 60 40 50 . Squads Dispatched 10 | . 2 1 7 . . Investigation 4 | . 1 1 2 . . Extermination . | . . . . . . Reinforcement 5 | . 1 . 4 . . Assault . | . . . . . . Garrison 1 | . . . 1 . . Intercept . | . . . . . . Searches Triggered . | . . . . . . Construction Impeded . | . . . . . . Haulers Reinforced . | . . . . . . Active Scanning Responses . | . . . . . . Cargo Convoy Interrupts . | . . . . . . Stealth | -11 -10 -9 -9 -9 -9 --------- Run | Yrd Mat Mat Sto Rec Scr Distress Signals 6 | . . 4 2 . . Communications Jammed . | . . . . . . Distress Signals . | . . . . . . Times Spotted 115 | . 27 35 27 5 21 Peak Tracking Total 13 | . 7 5 4 2 13 Tactical Retreats 2 | . . 2 . . . Traps | -11 -10 -9 -9 -9 -9 ------- Run | Yrd Mat Mat Sto Rec Scr Traps Triggered 1 | . 1 . . . . Indirectly . | . . . . . . Trap Hack Attempts . | . . . . . . Triggered . | . . . . . . Disarmed . | . . . . . . Reprogrammed . | . . . . . . Reused . | . . . . . . Traps Extracted . | . . . . . . Installed . | . . . . . . Triggered . | . . . . . . Machines | -11 -10 -9 -9 -9 -9 ---------- Run | Yrd Mat Mat Sto Rec Scr Machines Disabled 12 | . 3 3 4 . 2 Max in Single Turn 1 | . 1 . 1 . 1 Garrison Access 1 | . . . 1 . . Machines Repaired . | . . . . . . Machines Dismantled . | . . . . . . Machines Sabotaged . | . . . . . . Overloaded Fab Kills . | . . . . . . Hacking | -11 -10 -9 -9 -9 -9 --------- Run | Yrd Mat Mat Sto Rec Scr Machines Accessed 36 | . 6 7 7 10 6 Terminals 23 | . 5 6 6 6 . Fabricators . | . . . . . . Repair Stations . | . . . . . . Recycling Units 5 | . 1 . . 4 . Scanalyzers 1 | . . 1 . . . Garrison Access 1 | . . . 1 . . Total Hacks 134 | . 19 22 13 30 50 Successful 105 | . 11 15 10 19 50 Failed 28 | . 8 6 3 11 . Catastrophic . | . . . . . . Database Lockouts 1 | . . 1 . . . Manual 56 | . 18 11 7 20 . Terminals 75 | . 18 20 12 25 . Fabricators . | . . . . . . Repair Stations . | . . . . . . Recycling Units 6 | . 1 . . 5 . Scanalyzers 2 | . . 2 . . . Garrison Access 1 | . . . 1 . . Terminal Hacks 71 | . 3 6 5 7 50 Record 45 | . . . . . 45 Part Schematic 2 | . . . . 2 . Robot Analysis 9 | . 1 1 . 2 5 Prototype ID Bank 4 | . 1 1 1 1 . Open Door 4 | . . . 4 . . Emergency Access Points 1 | . . 1 . . . Terminal Index 1 | . . . . 1 . Alert Level 2 | . . 1 . 1 . Locate Traps 1 | . 1 . . . . Transport Status 1 | . . 1 . . . Zone Layout 1 | . . 1 . . . Fabricator Hacks . | . . . . . . Repair Station Hacks . | . . . . . . Recycling Unit Hacks 1 | . . . . 1 . Report Inventory 1 | . . . . 1 . Scanalyzer 1 | . . 1 . . . Retrieve Study 1 | . . 1 . . . Garrison Access Hacks 1 | . . . 1 . . Seal Access 1 | . . . 1 . . Unauthorized Hacks 31 | . 8 8 4 11 . Terminals 26 | . 7 8 4 7 . Botnet 8 | . 2 3 1 2 . Disrupt 1 | . . . 1 . . Skim 17 | . 5 5 2 5 . Fabricators . | . . . . . . Repair Stations . | . . . . . . Recycling Units 5 | . 1 . . 4 . Tunnel 5 | . 1 . . 4 . Scanalyzers . | . . . . . . Garrison Access . | . . . . . . Data Cores Recovered 1 | . . . 1 . . Used . | . . . . . . Hacking Detections 22 | . 5 7 4 6 . Full Trace Events . | . . . . . . Feedback Events . | . . . . . . Feedback Blocked . | . . . . . . Robot Schematics Acquired . | . . . . . . Robots Built . | . . . . . . Authchips . | . . . . . . Time . | . . . . . . Total Robot Build Rating . | . . . . . . Part Schematics Acquired 2 | . . . . 2 . Parts Built . | . . . . . . Authchips . | . . . . . . Time . | . . . . . . Total Part Build Rating . | . . . . . . Part Studies Acquired 1 | . . 1 . . . Parts Repaired . | . . . . . . Time . | . . . . . . Parts Recycled . | . . . . . . Recycled Matter . | . . . . . . Retrieved Matter . | . . . . . . Retrieved Components . | . . . . . . Parts Scanalyzed . | . . . . . . Part Schematics Acquired . | . . . . . . Parts Damaged . | . . . . . . Bothacking | -11 -10 -9 -9 -9 -9 ------------ Run | Yrd Mat Mat Sto Rec Scr Used RIF Installer . | . . . . . . Robots Hacked . | . . . . . . Non-combat . | . . . . . . Combat . | . . . . . . Robot Hacks Applied . | . . . . . . Relay Couplers Released . | . . . . . . Fabnet Peak Effective % . | . . . . . . Robots Rewired . | . . . . . . Allies Hacked . | . . . . . . Hacks Repelled . | . . . . . . Allies | -11 -10 -9 -9 -9 -9 -------- Run | Yrd Mat Mat Sto Rec Scr Total Allies 13 | . . 8 . 4 1 Largest Group 5 | . . 5 3 4 2 Highest-Rated Group 469 | . . 120 47 20 469 Highest-Rated Ally 464 | . . 24 26 5 464 Total Orders . | . . . . . . Ally Attacks 105 | . . 24 9 26 46 Total Damage 3080 | . . 548 141 149 2242 Kills 28 | . . 10 1 2 15 Allies Corrupted . | . . . . . . Allies Melted . | . . . . . . X0-1V1 Amusement Gains 135 | . 40 5 20 10 60 Average Entertainment 20 | . 22 10 27 33 4 Good Acts 49 | . 3 26 18 2 . Bad Acts 40 | . 5 16 15 3 1 Intel | -11 -10 -9 -9 -9 -9 ------- Run | Yrd Mat Mat Sto Rec Scr Active Infowar (turns) 339 | 133 206 . . . . Seismic 339 | 133 206 . . . . Robot Analysis Total 9 | . 1 1 . 2 5 Derelict Logs Recovered 1 | . . . . . 1 Drone Launches . | . . . . . . Drone Recoveries . | . . . . . . Exploration | -11 -10 -9 -9 -9 -9 ------------- Run | Yrd Mat Mat Sto Rec Scr Turns Passed 11092 | 245 1292 2187 1146 1777 4445 Spaces Moved 5085 | 121 713 1021 380 734 2116 Core 337 | 12 . . . . 325 Treads 3714 | 82 282 445 380 734 1791 Legs . | . . . . . . Wheels 1034 | 27 431 576 . . . Hover . | . . . . . . Flight . | . . . . . . Fastest Speed 50 | 50 105 105 240 240 50 Average Speed 199 | 133 149 186 240 240 205 Slowest Speed 320 | 160 240 320 240 240 320 Overloaded Moves . | . . . . . . Propulsion Burnouts . | . . . . . . Robots Hopped . | . . . . . . Potential Cave-ins . | . . . . . . Cave-ins Triggered . | . . . . . . Exploration Rate (%) 69 | 7 94 64 64 97 88 Regions Visited 5 Branch Regions 3 Pre-discovered Areas 13 | . 1 1 . 6 5 Known Exits Taken 1 | . . . 1 . . Unknown Exits Taken 4 | 1 1 1 . 1 . Scrap Searched 9 | . . . . . 9 Spaces Dug . | . . . . . . Terrain Destroyed 123 | . 70 32 20 1 . Melee . | . . . . . . Projectile 14 | . . . 13 1 . AOE 109 | . 70 32 7 . . Terrain Rammed . | . . . . . . Walls Destroyed . | . . . . . . Machines Disabled . | . . . . . . Actions | -11 -10 -9 -9 -9 -9 --------- Run | Yrd Mat Mat Sto Rec Scr Total 5608 | 164 832 1197 468 740 2207 Wait 17 | . 1 3 . . 13 Move 5080 | 120 712 1020 379 733 2116 Hop . | . . . . . . Pick Up 111 | 11 22 33 12 . 33 Fast Attach 10 | 2 . 4 1 1 2 Attach 35 | 5 8 6 2 1 13 Detach 1 | . . . . 1 . Swap 53 | 2 16 27 5 . 3 Drop 66 | . 5 37 8 . 16 Fire 221 | 24 66 57 59 4 11 Melee 13 | . 2 9 2 . . Ram . | . . . . . . Kick . | . . . . . . Crush . | . . . . . . Escape Stasis . | . . . . . . Rewire 1 | . . 1 . . . Trap . | . . . . . . Miscellaneous . | . . . . . . Route ------- -11/Scrapyard -10/Materials (discovered 6 exits: *Mat x3 / *Min x2 / [*Sub]) -9/Materials (discovered 5 exits: *Mat x3 / Min / *Sto) -9/Storage (discovered 2 exits: *Mat / *Rec) -9/Recycling (discovered 2 exits: [*Fac] / *Scr) -9/Scraptown (discovered 1 exit: [*Fac]) History --------- Turn | Location | Event 67 | -11/Scrapyard | Discovered new exit (range 16) 246 | -11/Scrapyard | Entered Materials 322 | -10/Materials | Build established: Mutant 399 | -10/Materials | Discovered new exit (range 9) 449 | -10/Materials | Prayed at D.C.S.S. Altar Unit 749 | -10/Materials | Ranged accuracy permanently improved by X0-1V1 (+5%; -50 max core) 779 | -10/Materials | Identified exit to Mines 779 | -10/Materials | X0-1V1 revealed exit location to -10/Mines 809 | -10/Materials | System corruption reached 10% 846 | -10/Materials | Derelicts attacked the area 987 | -10/Materials | X0-1V1 sent you into danger 1012 | -10/Materials | X0-1V1 made a cryptic comment about sterilization and BL-4Z3 1042 | -10/Materials | Core integrity fell below 50% 1084 | -10/Materials | Sterilization system engaged 1084 | -10/Materials | Non-combat units ordered to evacuate 1137 | -10/Materials | Discovered new exit (range 13) 1160 | -10/Materials | Discovered new exit (range 16) 1184 | -10/Materials | Combat units ordered to evacuate 1213 | -10/Materials | Discovered new exit (range 15) 1335 | -10/Materials | Discovered exit to Mines (range 15) 1384 | -10/Materials | Ambient heat levels rising (+10) 1520 | -10/Materials | X0-1V1 activates XOMVISION 1534 | -10/Materials | Ambient heat levels rising (+10) 1538 | -10/Materials | Entered another Materials area 1538 | -9/Materials | Evolved 2 slots: Utility x1, Weapon x1 1611 | -9/Materials | Identified exit to Materials 1611 | -9/Materials | X0-1V1 revealed exit location to -8/Materials 1633 | -9/Materials | Discovered new exit (range 12) 1649 | -9/Materials | System corruption reached 10% 1726 | -9/Materials | X0-1V1 activates XOMVISION 1831 | -9/Materials | Build established: Tank 1982 | -9/Materials | Utility slot count permanently improved by X0-1V1 (+1) 2021 | -9/Materials | X0-1V1 foreshadows a heat wave 2081 | -9/Materials | X0-1V1 revealed exit location to -8/Materials 2149 | -9/Materials | Discovered new exit (range 16) 2209 | -9/Materials | Build established: Mutant 2220 | -9/Materials | Ambient heat levels rising (+10) 2353 | -9/Materials | Ambient heat levels rising (+10) 2388 | -9/Materials | X0-1V1 caused items to flee you 2408 | -9/Materials | Central database locked down 2424 | -9/Materials | Learned Storage garrison access intel 2493 | -9/Materials | Learned Storage emergency access door positions 2516 | -9/Materials | Build established: Tank 2550 | -9/Materials | Identified exit to Mines 2634 | -9/Materials | Ambient heat levels falling (-10) 2637 | -9/Materials | Learned location of Storage (-9) 2833 | -9/Materials | Items stopped fleeing you 2999 | -9/Materials | Ambient heat levels falling (-10) 3434 | -9/Materials | Build established: Gunner 3436 | -9/Materials | X0-1V1 activates XOMVISION 3441 | -9/Materials | X0-1V1 put everyone to sleep 3485 | -9/Materials | X0-1V1 sent you to a vault 3587 | -9/Materials | X0-1V1 vaporized surrounding terrain (radius 16) 3592 | -9/Materials | X0-1V1 tapped a No Entrance sign 3636 | -9/Materials | X0-1V1 mutated your Utility slot to Power slot 3653 | -9/Materials | X0-1V1 added 0b10 threat records associated with you (considerable) 3656 | -9/Materials | X0-1V1 announced a LAN party 3678 | -9/Materials | X0-1V1 sent hostile G-34 Mercenary (x4) 3682 | -9/Materials | X0-1V1 sent allied G-34 Mercenary (x3) 3704 | -9/Materials | Lost 3 allies 3725 | -9/Materials | Entered Storage 3725 | -9/Storage | Accompanied by 3 allies 3727 | -9/Storage | Loaded intel: 1 garrison access location 3735 | -9/Storage | Heat dissipation permanently improved by X0-1V1 (+25; -125 max core) 3769 | -9/Storage | X0-1V1 revealed exit location to -8/Materials 3799 | -9/Storage | X0-1V1 put everyone to sleep 3837 | -9/Storage | X0-1V1 announced a LAN party 3840 | -9/Storage | X0-1V1 sent you into danger 3861 | -9/Storage | Identified exit to Recycling 3861 | -9/Storage | X0-1V1 revealed exit location to -9/Recycling 3866 | -9/Storage | X0-1V1 redirected Transport squads to designated parking area 3872 | -9/Storage | X0-1V1 rewrote G-34 Mercenary IFF filter 3888 | -9/Storage | Weapon slot count temporarily expanded by X0-1V1 (+2) 3984 | -9/Storage | Garrison activated, responded to threat 3986 | -9/Storage | Build established: Mutant 4193 | -9/Storage | X0-1V1 added 0b10 threat records associated with you (major) 4298 | -9/Storage | Build established: Gunner 4787 | -9/Storage | Weapon slot count reverted to normal (-2) 4863 | -9/Storage | Used back door to open Recycling access 4871 | -9/Storage | Entered Recycling 4872 | -9/Recycling | Met a Zionite searching for Scraptown 5227 | -9/Recycling | Discovered new exit (range 5) 5436 | -9/Recycling | X0-1V1 sent allied S-10 Pest (x4) 5769 | -9/Recycling | Learned location of 2 exits from Materials 5802 | -9/Recycling | Scanned before Scraplab entrance 5840 | -9/Recycling | Learned location of Zion (-7) 5852 | -9/Recycling | X0-1V1 activates XOMVISION 6340 | -9/Recycling | X0-1V1 vaporized surrounding terrain (radius 17) 6619 | -9/Recycling | Entered Scraplab 6638 | -9/Recycling | Discovered new exit (range 4) 6648 | -9/Recycling | Entered Scraptown 6648 | -9/Scraptown | Accompanied by 1 ally 6849 | -9/Scraptown | Heard Great Nut preacher, LISTEN AND RECITE! 7175 | -9/Scraptown | Discovered new exit (range 13) 7271 | -9/Scraptown | Scanned Subdweller tech in exchange for log data 7357 | -9/Scraptown | Visited Spacefarers 7472 | -9/Scraptown | Visited Bundlers 7783 | -9/Scraptown | Visited Red Mages 7865 | -9/Scraptown | Visited Fellowship of the Rings 8254 | -9/Scraptown | Visited Cyclists 8333 | -9/Scraptown | Visited TADAMA 8398 | -9/Scraptown | Visited Cave Peace 8484 | -9/Scraptown | Visited UFD Registry 8491 | -9/Scraptown | Registered with UFD as "Kineticell" 8528 | -9/Scraptown | Entered Cyclist Reading Room 8677 | -9/Scraptown | Visited Cartography Club 8751 | -9/Scraptown | Released all parts (9) 8774 | -9/Scraptown | Found Surveybot 17 Chip 8878 | -9/Scraptown | Learned location of Upper Caves (-5) 8878 | -9/Scraptown | Learned 8 Materials zone layouts 8878 | -9/Scraptown | Learned 12 Materials zone layouts 8878 | -9/Scraptown | Learned 12 Factory zone layouts 8878 | -9/Scraptown | Learned 16 Factory zone layouts 8878 | -9/Scraptown | Learned 20 Factory zone layouts 8878 | -9/Scraptown | Learned 8 Research zone layouts 8878 | -9/Scraptown | Learned 4 Access zone layouts 8878 | -9/Scraptown | Learned 8 Lower Caves zone layouts 8878 | -9/Scraptown | Learned location of 3 exits from Upper Caves 8878 | -9/Scraptown | Learned location of 1 exit from Proximity Caves 8878 | -9/Scraptown | Learned 12 Proximity Caves zone layouts 8878 | -9/Scraptown | Learned 24 Factory zone layouts 8889 | -9/Scraptown | Found Deep Structural Scanner 9077 | -9/Scraptown | Visited Curators Association 9140 | -9/Scraptown | Visited Scrapoid Research Area 9223 | -9/Scraptown | Visited Observation Area 9316 | -9/Scraptown | Visited Analyses Database 9367 | -9/Scraptown | Visited Scrapoid Pod Storage 9385 | -9/Scraptown | Found Scrapoid Pod 9485 | -9/Scraptown | Visited Junk Repository 9518 | -9/Scraptown | Visited DA-N13 Charitable Foundation 9541 | -9/Scraptown | Found DCF Scrap (29 items) 9583 | -9/Scraptown | Visited LU-1G1's Boring Crew 9662 | -9/Scraptown | Visited Chapter 10 10961 | -9/Scraptown | X0-1V1 brought Wyrm Statue to life 10961 | -9/Scraptown | Attacked by Scraptown defenders 11051 | -9/Scraptown | X0-1V1 sent you into danger 11093 | -9/Scraptown | Destroyed by Triborg with Siege Cannon Last Messages --------------- 11083_ Adv. Treads destroyed. 11083_ Siege Slug penetrates Wall. 11084_ Slug penetrates Chaos Wyrm. 11087_ The unstable cave ceiling collapses. 11087_ Siege Slug penetrates Wall. 11089_ Penetrated by Siege Slug. 11089_ Scrapoid Pod destroyed. 11089_ Siege Slug penetrates Wall. 11089_ 4A-LJH(E) destroyed. 11090_ The unstable cave ceiling collapses. 11090_ Critical hit (Burn: +37). 11090_ WB-LFW(g) destroyed. 11090_ 5E-CA9(j) destroyed. 11091_ Penetrated by Siege Slug. 11091_ Grenade Launcher destroyed. 11091_ Siege Slug penetrates Earth. 11093_ Lgt. Angular Momentum Engine destroyed. 11093_ X0-1V1 thinks this is hilarious! 11093_ Penetrated by Siege Slug. 11093_ X0-1V1 bursts into laughter! Map ----- +----------------------------------------------------+ | ![ "## " " # """ # #???????????????# | | /] "## "" # """ # #?????########### | | "## " " # """ # #?????#""X##""" # | | """ ""## "" " # #????## "# | | ### #### " " # " " # #????#X # # | | ### ###???? ?##""""" # #????#" # ## # | | """ ""#???##??######### #????#""# # | | "################# #????####### # | | "" "## !! #""" """ #??????????# # | | "" "##!/ !#" " " " =%=[ ??????????# # | | "##! [ #!! ![ %!% #?????????# # | | ""##! !# *![ #?????????#"X" # | | """""## = # ??????????###### | | """"""#### ## ! ######??????????# | | """""??#"" !%* ###????????# | | #####??#" # ! =########## | | ########""= !!! # !%*![! ! | | """X""## [|=[! %[=j[[% | | " "##" " " % =[g%!! | | " "##"" "" """" " = = = ![ | | " "#############; [!== | | " "#????????## DDx = | | " "#????????# % DDx % | | "" """########### ! = | | ; ;### # ######### | | ; @ #? | | "" """##"" """;;; ;#; % "" ?# #? | | " "##"" "# # ; ; """ ""#??# #? | | "" "##"" "#?# ###""" """#??# #? | | "" "##""= "#?# #?#"""" " " ""#??# #? | | "" " "##" "#?# #?#" """ ""#??# #? | | """" "##" ! "#?# #?#"" """ "#??# #? | | """"""##""""""#?# #?#"" " "#??# #? | | ###############?# #?#"" """""" ""#??# #? | | ##??????#####???# #?#"#+######"""#??###########? | | """"????#"""#???# #?#"#! !!!#"""#?????????????? | | ?????#" "#???# #?#?#!!!! !#""????????######## | | """????# #???# #???########?????????""""""""" | | """ ???# ##### #????????????????????"""" """" | | """ ???# ##????????????##???#"""" " " | | """ ???# #???????????? | | """ "??# ##????##?????? #???#"" "" "" | | """ "??##### ### ##????"""????"" "??????"""""""" | | """ "#?????# #?###????"" "???""" "#???????"""""" | | """ "####### ######???"" ??#""" "#???????###### | | """ "##""""" """""#??#" ""?#"" "#?############ | | "##""" " " "#??#"" ""##"" "#?#""""""""""" | | """"""##" "#??#"" ""##"| "#?#""!!!]!!! " | | ########""""" """""#??#"" ""##"| "#?#"" !!![=[ " | | #??????###### ######??#" ""##"" "#?#"" " | +----------------------------------------------------+ Best States ------------- Heat Dissipation 75 Coolant Potential 50 Energy Generation 31 Energy Capacity 1845 Matter Stores 1000 Matter Capacity 1000 Sight Range 20 Terrain Scan Density 10 Armor Coverage 150 Weapon Shielding 33 Evasion (%) 50 Recoil Reduction 2 Item Schematics ----------------- Plasma Cutter | -9/Recycling | Hacked Huge Storage Unit | -9/Recycling | Hacked Robot Schematics ------------------ None Fabricated ------------ Nothing Repaired ---------- Nothing Studied --------- Hvy. Hammer | -9/Materials | Hacked Alien Tech Used ----------------- None Achievements -------------- Bob, First Of His Name Challenges ------------ None Game ------ Seed BiometalHeatTether Manual? 0 Play Time 01:20:28 Cumulative 423.7 hours Start 2026.09.08 @ 22:13:27 End 2026.09.08 @ 23:42:00 Sessions 1 Manual Loads 0 Difficulty Rogue Special Mode None Game No. 307 Rogue 297 Adventurer 0 Explorer 10 Win Type - Total 5 Types 5/0/0/0/0/0/0/0/0/0 Lore% 82 Gallery% 66 Achievement% 47 Wizard Run 0 Options --------- Layout 2 ASCII 0 Keyboard 0 Movement Arrows Keybinds 1 Fullscreen 1 Font 24/Terminus Map View 50x44 Zoom Use 0% Tactical HUD 1 Map Filters NONE Filters NONE Steam 1 RUN: 41a3be9f-c3ef-446f-b5ae-15f6878a783c